{"text_format":"2","workbook":"xlsx","n_sheets":11,"sheets":["Főösszesítő","Munkanem összesítő","2.Bontás, építőanyagok újraha","33.Falazás és egyéb kőműves mu","36.Vakolás és rabicolás","39.Szárazépítés","42.Hideg- és melegburkolatok k","44.Fa- és műanyag szerkezet el","47.Felületképzés","71.Elektromos energiaellátás,","90.Takarítási munkák"],"not_rendered":{"charts":0,"images":0,"macros":0,"external_links":0,"defined_names":0,"comments":0,"pivot_tables":0},"unopened":[],"bounds":{"document_bytes":16777216,"sheet_cells":100000,"run_cost":"one","rows_first":2000,"rows_last":500,"rows_between":2000,"halvings":0,"cell_chars":16384,"cell_head_chars":4096},"cells_cut":0,"cells_raw":0,"read":"whole","date_system":"1900"}

{"sheet":"Főösszesítő","index":0,"n_rows":8,"n_cols":4,"rows_kept":8,"cut":false,"hidden":false,"merged":[[0,0,0,3],[2,0,2,3],[5,2,5,3],[6,2,6,3],[7,2,7,3]]}
[]
[]
["Költségvetés főösszesítő"]
["Megnevezés",null,"Anyagköltség","Díjköltség"]
["1 Építmény közvetlen költségei",null,{"$f":"'Munkanem összesítő'!C11","v":0},{"$f":"'Munkanem összesítő'!D11","v":0}]
["2.1 ÁFA vetítési alap",null,{"$f":"ROUND(C5+D5,0)","v":0}]
["2.2 ÁFA",0.27,{"$f":"ROUND(C6*B7,0)","v":0}]
["3 A munka ára (HUF)",null,{"$f":"ROUND(C7+C6,0)","v":0}]

{"sheet":"Munkanem összesítő","index":1,"n_rows":11,"n_cols":4,"rows_kept":11,"cut":false,"hidden":false,"merged":[]}
["Ssz.","Megnevezés","Anyagköltség","Díjköltség"]
["2","Bontás, építőanyagok újrahasznosítása",{"$f":"'2.Bontás, építőanyagok újraha'!H4","v":0},{"$f":"'2.Bontás, építőanyagok újraha'!I4","v":0}]
["33","Falazás és egyéb kőműves munkák",{"$f":"'33.Falazás és egyéb kőműves mu'!H3","v":0},{"$f":"'33.Falazás és egyéb kőműves mu'!I3","v":0}]
["36","Vakolás és rabicolás",{"$f":"'36.Vakolás és rabicolás'!H8","v":0},{"$f":"'36.Vakolás és rabicolás'!I8","v":0}]
["39","Szárazépítés",{"$f":"'39.Szárazépítés'!H3","v":0},{"$f":"'39.Szárazépítés'!I3","v":0}]
["42","Hideg- és melegburkolatok készítése, aljzat előkészítés",{"$f":"'42.Hideg- és melegburkolatok k'!H13","v":0},{"$f":"'42.Hideg- és melegburkolatok k'!I13","v":0}]
["44","Fa- és műanyag szerkezet elhelyezése",{"$f":"'44.Fa- és műanyag szerkezet el'!H4","v":0},{"$f":"'44.Fa- és műanyag szerkezet el'!I4","v":0}]
["47","Felületképzés",{"$f":"'47.Felületképzés'!H15","v":0},{"$f":"'47.Felületképzés'!I15","v":0}]
["71","Elektromos energiaellátás, villanyszerelés",{"$f":"'71.Elektromos energiaellátás,'!H7","v":0},{"$f":"'71.Elektromos energiaellátás,'!I7","v":0}]
["90","Takarítási munkák",{"$f":"'90.Takarítási munkák'!H5","v":0},{"$f":"'90.Takarítási munkák'!I5","v":0}]
[null,"Összesen (HUF)",{"$f":"ROUND(SUM(C2:C10),0)","v":0},{"$f":"ROUND(SUM(D2:D10),0)","v":0}]

{"sheet":"2.Bontás, építőanyagok újraha","index":2,"n_rows":4,"n_cols":9,"rows_kept":4,"cut":false,"hidden":false,"merged":[]}
["Ssz.","Tételszám","Tétel szövege","Menny.","Egység","Anyag egységár","Díj egységre","Anyag összesen","Díj összesen"]
[1,"02-030-7.1 K","Vegyes építési- bontási törmelék kihordása és felrakása szállítóeszközre kézi erővel, elszállítása (alagsori étkező)",1,"tétel",0,0,{"$f":"ROUND(F2*D2,0)","v":0},{"$f":"ROUND(G2*D2,0)","v":0}]
[2,"02-030-7.1 K","Vegyes építési- bontási törmelék kihordása és felrakása szállítóeszközre kézi erővel, elszállítása (3209 terem)",1,"tétel",0,0,{"$f":"ROUND(F3*D3,0)","v":0},{"$f":"ROUND(G3*D3,0)","v":0}]
[null,null,"Munkanem összesen (HUF)",{"$nulls":4},{"$f":"ROUND(SUM(H2:H3),0)","v":0},{"$f":"ROUND(SUM(I2:I3),0)","v":0}]

{"sheet":"33.Falazás és egyéb kőműves mu","index":3,"n_rows":3,"n_cols":9,"rows_kept":3,"cut":false,"hidden":false,"merged":[]}
["Ssz.","Tételszám","Tétel szövege","Menny.","Egység","Anyag egységár","Díj egységre","Anyag összesen","Díj összesen"]
[1,"33-063-3.1.1","Horonyvésés, meglévő vakolatba, MM jelű fal vezeték részére",40,"m",0,0,{"$f":"ROUND(F2*D2,0)","v":0},{"$f":"ROUND(G2*D2,0)","v":0}]
[null,null,"Munkanem összesen (HUF)",{"$nulls":4},{"$f":"ROUND(SUM(H2:H2),0)","v":0},{"$f":"ROUND(SUM(I2:I2),0)","v":0}]

{"sheet":"36.Vakolás és rabicolás","index":4,"n_rows":8,"n_cols":9,"rows_kept":8,"cut":false,"hidden":false,"merged":[]}
["Ssz.","Tételszám","Tétel szövege","Menny.","Egység","Anyag egységár","Díj egységre","Anyag összesen","Díj összesen"]
[1,"36-000-1.1.1 K","Vakolat leverése, ragasztó pogácsák is oldalfalról csempe alatti szükséges vastagságig falazó, cementes mészhabarcs",4,"m2",0,0,{"$f":"ROUND(F2*D2,0)","v":0},{"$f":"ROUND(G2*D2,0)","v":0}]
[2,"36-000-18","Téglafelület fugáinak tisztítása 2 cm mélységben",4,"m2",0,0,0,0]
[3,"36-002-1","Felület portalanítása, előnedvesítése porlasztott vízsugárral, vakolás előtt",4,"m2",0,0,0,0]
[4,"36-002-11.1-0412852","Tapadóhíd képzése gyári zsákos gúzanyaggal, kézi erővel, Cemix KONTAKT VS gúzoló, Csz: K00305221",4,"m2",0,0,0,0]
[5,"36-003-1.1.1.1.1-0414710 K","Oldalfalvakolat készítése, kézi felhordással, zsákos kiszerelésű szárazhabarcsból, sima, normál mész-cement vakolat, szükséges vastagságban, csempeburkolat alá Cemix PRÉMIUM kézi alapvakolat, Cikkszám: K00215011",4,"m2",0,0,0,0]
[6,"36-090-2.2.1","Vakolatok pótlása, keskenyvakolatok pótlása mennyezeten, 10 cm szélességig",40,"m",0,0,0,0]
[null,null,"Munkanem összesen (HUF)",{"$nulls":4},{"$f":"ROUND(SUM(H2:H7),0)","v":0},{"$f":"ROUND(SUM(I2:I7),0)","v":0}]

{"sheet":"39.Szárazépítés","index":5,"n_rows":3,"n_cols":9,"rows_kept":3,"cut":false,"hidden":false,"merged":[]}
["Ssz.","Tételszám","Tétel szövege","Menny.","Egység","Anyag egységár","Díj egységre","Anyag összesen","Díj összesen"]
[1,"39-000-1.1.1.1 K","Gipszkarton válaszfal szerkezetek bontása, CW vagy UA fém vázszerkezetről, egyszeres tartóvázról, 1 rtg. gipszkarton borítással",32,"m2",0,0,{"$f":"ROUND(F2*D2,0)","v":0},{"$f":"ROUND(G2*D2,0)","v":0}]
[null,null,"Munkanem összesen (HUF)",{"$nulls":4},{"$f":"ROUND(SUM(H2:H2),0)","v":0},{"$f":"ROUND(SUM(I2:I2),0)","v":0}]

{"sheet":"42.Hideg- és melegburkolatok k","index":6,"n_rows":13,"n_cols":9,"rows_kept":13,"cut":false,"hidden":false,"merged":[]}
["Ssz.","Tételszám","Tétel szövege","Menny.","Egység","Anyag egységár","Díj egységre","Anyag összesen","Díj összesen"]
[1,"42-000-2.2","Lapburkolatok bontása, fal-, pillér- és oszlopburkolat, bármely méretű mozaik, kőagyag és csempe",4,"m2",0,0,{"$f":"ROUND(F2*D2,0)","v":0},{"$f":"ROUND(G2*D2,0)","v":0}]
[2,"42-011-1.1.1.1-0216002","Fal-, pillér és oszlopburkolat hordozószerkezetének felületelőkészítése beltérben, tégla, beton és vakolt alapfelületen, felületelőkészítő alapozó és tapadóhíd felhordása egy rétegben, MUREXIN LF 1 mélyalapozó",4,"m2",0,0,0,0]
[3,"42-012-1.1.1.1.1.3 K","Fal-, pillér-, oszlop- és lábazatburkolat készítése beltérben, tégla, beton, vakolt alapfelületen, mázas kerámiával, kötésben vagy hálósan, 3-5 mm vtg. ragasztóba rakva, 1-10 mm fugaszélességgel, 25x30 cm lapmérettel, szögletes fém élvédővel, választott\nszines csempelapokkal, fugázva\nCemix GRES/Gres ragasztó, EN 12004 szerinti C2TE\nminősítéssel, kül- és beltérbe, fagyálló\nCemix SILVERCOL Prémium flexibilis fugázó, csempelapokkal színazonos",4,"m2",0,0,0,0]
[4,"42-042-1.9.1 K","Párnafák elhelyezése, rögzítése csavarosan\ntégla falazatra, 48x50 mm méretben 60 cm es távolságonként\nLambéria fogadó szerkezete.",25,"m2",0,0,0,0]
[5,"42-012-1.1.1.1.1.3 K","Fal-, pillér-, oszlop- és lábazatburkolat készítése\nbeltérben, vakolt alapfelületen,\nmázas kerámiával,\nkötésben vagy hálósan, 3-5 mm vtg. ragasztóba rakva, 1-10 mm\nfugaszélességgel,\n25x30 cm lapmérettel, szögletes fém élvédővel, választott\nszines csempelapokkal, fugázva\nCemix GRES/Gres ragasztó, EN 12004 szerinti C2TE\nminősítéssel, kül- és beltérbe, fagyálló\nCemix SILVERCOL Prémium flexibilis fugázó, csmpelapokkal\nszínazonos",4,"m2",0,0,0,0]
[6,"42-000-3.1.1 K","42-000-3.1.1 (9)\nVakpadló (deszkázat) párnafával bontása",61,"m2",0,0,0,0]
[7,"42-000-3.2.1 K","Caphornyos pakettaburkolat bontása\n22 mm vastag vakpadlóra szegezve",61,"m2",0,0,0,0]
[8,"42-042-1 K","Vakpadló készítése 22 mm-es OSB lapokkal\n48x75 mm-es párnafákkal",61,"m2",0,0,0,0]
[9,"42-042-4.1.1.5-0110701","Parkettafektetés, csaphornyos parkettából, meglévő vakpadlóra szegezve, halszálka mintába (duplahalszálka mintába) rakva, Csaphornyos parketta, 300/350/400x45/55x22 mm, tölgy, Standard, Mátraparkett",61,"m2",0,0,0,0]
[10,"42-042-6.1.2.1-1311142","Kisegítő- és részmunkák, parketta csiszolása és lakkozása, nagy igénybevételre, oldószeres lakkal, MUREXIN LV 45 Univerzális alapozó PU lakkhoz MUREXIN PU 95 2K lakk, fényes A+B komponens",61,"m2",0,0,{"$f":"ROUND(F11*D11,0)","v":0},0]
[11,"42-090-6.7.3 K","Parkettaburkolathoz székléc készítése felszerelése szegeléssel új anyagból\nTölgy szegélyléc 32x20 mm",34,"m",0,0,0,0]
[null,null,"Munkanem összesen (HUF)",{"$nulls":4},{"$f":"ROUND(SUM(H2:H12),0)","v":0},{"$f":"ROUND(SUM(I2:I12),0)","v":0}]

{"sheet":"44.Fa- és műanyag szerkezet el","index":7,"n_rows":4,"n_cols":9,"rows_kept":4,"cut":false,"hidden":false,"merged":[]}
["Ssz.","Tételszám","Tétel szövege","Menny.","Egység","Anyag egységár","Díj egységre","Anyag összesen","Díj összesen"]
[1,"44-006-2 K","Fa lambériát lezáró \"L\" alakú szegőléc elhelyezése\n3,5*3,5*240 cm méretben",6.2,"m",0,0,{"$f":"ROUND(F2*D2,0)","v":0},{"$f":"ROUND(G2*D2,0)","v":0}]
[2,"44-006-3-0210005","Fa lambéria elhelyezése, szerelése beépített éklécekre, Fenyő lambéria, 5 m felett",5.5,"m2",0,0,{"$f":"ROUND(F3*D3,0)","v":0},{"$f":"ROUND(G3*D3,0)","v":0}]
[null,null,"Munkanem összesen (HUF)",{"$nulls":4},{"$f":"ROUND(SUM(H2:H3),0)","v":0},{"$f":"ROUND(SUM(I2:I3),0)","v":0}]

{"sheet":"47.Felületképzés","index":8,"n_rows":15,"n_cols":9,"rows_kept":15,"cut":false,"hidden":false,"merged":[]}
["Ssz.","Tételszám","Tétel szövege","Menny.","Egység","Anyag egységár","Díj egységre","Anyag összesen","Díj összesen"]
[1,"47-000-1.3.1.1","Belső festéseknél felület előkészítése, részmunkák; vizes diszperziós falfesték lekaparása, bármilyen padozatú helységben, tagolatlan felületen",90,"m2",0,0,{"$f":"ROUND(F2*D2,0)","v":0},{"$f":"ROUND(G2*D2,0)","v":0}]
[2,"47-000-1.6.1.1","Belső festéseknél felület előkészítése, részmunkák; penészgátló felhordása új vagy lekapart felületen, vakolt, tagolatlan felületen",90,"m2",0,0,0,0]
[3,"47-000-1.21.2.1.1.1-0320612","Belső festéseknél felület előkészítése, részmunkák; glettelés, műanyag kötőanyagú glettel (simítótapasszal), vakolt felületen, bármilyen padozatú helyiségben, tagolatlan felületen, NIVELIN por alakú beltéri glett",90,"m2",0,0,0,0]
[4,"47-010-2.1.1 K","Enyhén nedvszívó vagy sima falfelületek\ntapadásközvetítő alapozása, felület átkaparása-átcsiszolása utáni portalanítása (oldalfalon és mennyezeten) vizes-diszperziós akril bázisú\nalapozóval, tagolatlan felületen vizes diszperziós alapozó, tapadásközvetítő",340,"m2",0,0,0,0]
[5,"47-010-4.1.1-0154103","Enyhén nedvszívó, de egyéb átütést okozó  anyaggal szennyezett felületek festés előtti mentesítő alapozása, vizes-diszperziós akril bázisú alapozóval, tagolatlan felületen, StoPrim Isol vizes alapú, akrilátbázisú, átütő elszíneződéseket elszigetelő alapozó, 01304-005",90,"m2",0,0,0,0]
[6,"47-011-15.1.2.1-0151171","Diszperziós festés műanyag bázisú vizes-diszperziós  fehér vagy gyárilag színezett festékkel, új vagy régi lekapart, előkészített alapfelületen  vagy jól tapadó meglévő festékrétegen, beton felületen, két rétegben, tagolatlan sima felületen, HÉRA beltéri falfesték matt fehér, EAN: 5995061999118",180,"m2",0,0,0,0]
[7,"47-011-15.1.2.1-0154005","Diszperziós festés műanyag bázisú vizes-diszperziós  fehér vagy gyárilag színezett festékkel, új vagy régi lekapart, előkészített alapfelületen  vagy jól tapadó meglévő festékrétegen, beton felületen, két rétegben, tagolatlan sima felületen, D112 belsőtéri, penészgátló, matt, diszperziós falfesték, fehér",160,"m2",0,0,{"$f":"ROUND(F8*D8,0)","v":0},{"$f":"ROUND(G8*D8,0)","v":0}]
[8,"47-031-1.9.1.1 K","Belső fafelületek lambéria kézi átcsiszolása utáni lakkozása, 2 rétegben vízbázisú poliuretán-akrilát anyagú, 1 komponensű transzparens lakkal.",5.5,"m2",0,0,0,0]
[9,"47-000-1.4.1.1.1","Belső festéseknél felület előkészítése, részmunkák; régi olajfesték eltávolítása falfelületről, lekaparással, spatulával, bármilyen padozatú helyiségben, tagolatlan felületen",8,"m2",0,0,0,0]
[10,"47-000-1.21.7.1.1-0419501","Belső festéseknél felület előkészítése, részmunkák; glettelés, gipszes glettel, vakolt felületen, tagolatlan felületen, POLI-FARBE glettgipsz 0-6, gipszes, beltéri glettanyag, fehér",8,"m2",0,0,0,0]
[11,"47-000-1.31.1.1-0150081","Belső festéseknél felület előkészítése, részmunkák; simítótapaszolás falfelületen, egyszeri és minden további, bármilyen padozatú helyiségben, tagolatlan felületen, Késtapasz",8,"m2",0,0,0,0]
[12,"47-011-5.2.2.1 K","Olajlábazat mázolása előkészítés után.\n1 réteg lenolaj kötőanyagú, színes alfestékkel,\nés 1 réteg szines zománcfestékkel.\ntagolatlan sima felületen",18,"m2",0,0,{"$f":"ROUND(F13*D13,0)","v":0},0]
[13,"47-011-42.2 K","Felület mintázása,\nzáró vonalozás készítése olajlábazatnál",15,"100 m",0,0,0,0]
[null,null,"Munkanem összesen (HUF)",{"$nulls":4},{"$f":"ROUND(SUM(H2:H14),0)","v":0},{"$f":"ROUND(SUM(I2:I14),0)","v":0}]

{"sheet":"71.Elektromos energiaellátás,","index":9,"n_rows":7,"n_cols":9,"rows_kept":7,"cut":false,"hidden":false,"merged":[]}
["Ssz.","Tételszám","Tétel szövege","Menny.","Egység","Anyag egységár","Díj egységre","Anyag összesen","Díj összesen"]
[1,"71-000-1.5.1","Vezetékek, kábelek és szerelvények bontása; vörösréz vagy alumínium vezeték leszerelése védőcsőből kihúzva, 10 mm2-ig",40,"m",0,0,{"$f":"ROUND(F2*D2,0)","v":0},{"$f":"ROUND(G2*D2,0)","v":0}]
[2,"71-000-1.13","Vezetékek, kábelek és szerelvények bontása; mindennemű fényforrás és lámpatest leszerelése",12,"db",0,0,{"$f":"ROUND(F3*D3,0)","v":0},{"$f":"ROUND(G3*D3,0)","v":0}]
[3,"71-002-2.1-0211041","Szigetelt vezeték elhelyezése közvetlen falhoronyba vagy falra fektetve,  vakolat alá, 1-3 erű tömör rézvezetővel, dobozokkal és leágazó kötésekkel, szigetelési ellenállás méréssel, a szerelvényekhez csatlakozó vezetékvégek bekötése nélkül, keresztmetszet: 1,5-2,5 mm², MMFalCu 450/750V 3x1,5 mm², tömör rézvezetővel",40,"m",0,0,{"$f":"ROUND(F4*D4,0)","v":0},{"$f":"ROUND(G4*D4,0)","v":0}]
[4,"71-010-2.7 K","Felületre szerelt lámpatest elhelyezése előre elkészített tartószerkezetre, zárt, LED-es kivitelben 40W mennyezeti LED-es lámpatest, IP65, 1500mm",14,"db",0,0,{"$f":"ROUND(F5*D5,0)","v":0},{"$f":"ROUND(G5*D5,0)","v":0}]
[5,"71-013-9 K","Étkezdében lévő elektromos szerelvények érintésvédelmi mérés és jegyzőkönyv készítése",1,"mp*",0,0,{"$f":"ROUND(F6*D6,0)","v":0},{"$f":"ROUND(G6*D6,0)","v":0}]
[null,null,"Munkanem összesen (HUF)",{"$nulls":4},{"$f":"ROUND(SUM(H2:H6),0)","v":0},{"$f":"ROUND(SUM(I2:I6),0)","v":0}]

{"sheet":"90.Takarítási munkák","index":10,"n_rows":5,"n_cols":9,"rows_kept":5,"cut":false,"hidden":false,"merged":[]}
["Ssz.","Tételszám","Tétel szövege","Menny.","Egység","Anyag egységár","Díj egységre","Anyag összesen","Díj összesen"]
[1,"90-008-1-0190081","Festés előtt burkolatok takarásának készítése, Agró fólia, 0,20 mm",1.8,"100 m2",0,0,{"$f":"ROUND(F2*D2,0)","v":0},{"$f":"ROUND(G2*D2,0)","v":0}]
[2,"90-008-2","Festés után burkolatok takarásának felszedése",1.8,"100 m2",0,0,{"$f":"ROUND(F3*D3,0)","v":0},{"$f":"ROUND(G3*D3,0)","v":0}]
[3,"90-008-4.1-0510021","Festés után padlózat tisztítása kaparással, felmosással műkő-, mozaik-, kőagyaglap padlóburkolat, Felmosás Flóraszept-es vízzel",1.89,"100 m2",0,0,{"$f":"ROUND(F4*D4,0)","v":0},{"$f":"ROUND(G4*D4,0)","v":0}]
[null,null,"Munkanem összesen (HUF)",{"$nulls":4},{"$f":"ROUND(SUM(H2:H4),0)","v":0},{"$f":"ROUND(SUM(I2:I4),0)","v":0}]